[Event "Elite Hotels Open 2024"]
[Site "Elite Stadshotellet, Kungsgatan 6, Vaxjo, Sweden"]
[Date "2024.02.11"]
[Round "7.7"]
[White "Akesson, Ralf"]
[Black "Eklund, Joel"]
[Result "1-0"]
[TimeControl "15 minutes + 5 seconds per move from move one (Round 1 - 4) / 90 minutes + 30 seconds per move from move one (Round 5 - 8)"]
[WhiteTitle "GM"]
[WhiteFideId "1700120"]
[BlackFideId "1705288"]
[WhiteElo "2378"]
[BlackElo "2258"]

1. d4 {[%clk 01:27:10]} {[%emt 00:03:49]} d5 {[%clk 01:30:22]} {[%emt
00:00:39]} 2. c4 {[%clk 01:27:30]} {[%emt 00:00:10]} c6 {[%clk 01:30:19]}
{[%emt 00:00:33]} 3. Nc3 {[%clk 01:27:12]} {[%emt 00:00:47]} Nf6 {[%clk
01:30:30]} {[%emt 00:00:19]} 4. e3 {[%clk 01:27:26]} {[%emt 00:00:17]} Bf5
{[%clk 01:30:15]} {[%emt 00:00:45]} 5. cxd5 {[%clk 01:26:32]} {[%emt 00:01:24]}
cxd5 {[%clk 01:29:54]} {[%emt 00:00:52]} 6. Qb3 {[%clk 01:26:51]} {[%emt
00:00:11]} Bc8 {[%clk 01:13:54]} {[%emt 00:16:30]} 7. Nf3 {[%clk 01:25:24]}
{[%emt 00:01:55]} Nc6 {[%clk 01:13:31]} {[%emt 00:00:54]} 8. Ne5 {[%clk
01:22:40]} {[%emt 00:03:14]} e6 {[%clk 01:11:49]} {[%emt 00:02:13]} 9. f4
{[%clk 01:19:47]} {[%emt 00:03:22]} Be7 {[%clk 01:11:18]} {[%emt 00:01:01]} 10.
Bd3 {[%clk 01:19:38]} {[%emt 00:00:39]} O-O {[%clk 01:10:27]} {[%emt 00:01:22]}
11. O-O {[%clk 01:19:53]} {[%emt 00:00:14]} Nd7 {[%clk 01:07:35]} {[%emt
00:03:22]} 12. Bd2 {[%clk 01:10:57]} {[%emt 00:09:26]} f5 {[%clk 01:03:29]}
{[%emt 00:04:36]} 13. Rac1 {[%clk 01:05:13]} {[%emt 00:06:14]} Ndxe5 {[%clk
01:01:05]} {[%emt 00:02:54]} 14. dxe5 {[%clk 00:59:37]} {[%emt 00:06:05]} Bd7
{[%clk 00:56:53]} {[%emt 00:04:43]} 15. Nb5 {[%clk 00:52:10]} {[%emt 00:07:56]}
Qb6 {[%clk 00:53:43]} {[%emt 00:03:40]} 16. Nd6 {[%clk 00:50:56]} {[%emt
00:01:43]} Qxb3 {[%clk 00:53:02]} {[%emt 00:01:12]} 17. axb3 {[%clk 00:51:23]}
{[%emt 00:00:03]} Rab8 {[%clk 00:53:06]} {[%emt 00:00:26]} 18. Bb5 {[%clk
00:45:22]} {[%emt 00:06:31]} Rfd8 {[%clk 00:50:50]} {[%emt 00:02:46]} 19. Nxb7
{[%clk 00:38:28]} {[%emt 00:07:24]} Rxb7 {[%clk 00:51:07]} {[%emt 00:00:13]} 20.
Bxc6 {[%clk 00:38:50]} {[%emt 00:00:07]} Bxc6 {[%clk 00:35:35]} {[%emt
00:16:04]} 21. Rxc6 {[%clk 00:39:06]} {[%emt 00:00:14]} Kf7 {[%clk 00:35:41]}
{[%emt 00:00:24]} 22. Bc3 {[%clk 00:37:17]} {[%emt 00:02:18]} Rdd7 {[%clk
00:19:23]} {[%emt 00:16:49]} 23. Ra1 {[%clk 00:32:51]} {[%emt 00:04:56]} Bb4
{[%clk 00:18:33]} {[%emt 00:01:20]} 24. Bd4 {[%clk 00:30:37]} {[%emt 00:02:44]}
a5 {[%clk 00:18:56]} {[%emt 00:00:07]} 25. Rac1 {[%clk 00:30:21]} {[%emt
00:00:45]} h6 {[%clk 00:16:43]} {[%emt 00:02:44]} 26. Kf2 {[%clk 00:23:13]}
{[%emt 00:07:37]} g5 {[%clk 00:16:30]} {[%emt 00:00:44]} 27. g3 {[%clk
00:23:09]} {[%emt 00:00:33]} Re7 {[%clk 00:11:52]} {[%emt 00:05:09]} 28. h3
{[%clk 00:21:17]} {[%emt 00:02:22]} Red7 {[%clk 00:12:00]} {[%emt 00:00:22]} 29.
Kf3 {[%clk 00:19:47]} {[%emt 00:01:59]} Re7 {[%clk 00:09:53]} {[%emt 00:02:38]}
30. R1c2 {[%clk 00:16:57]} {[%emt 00:03:19]} Be1 {[%clk 00:09:09]} {[%emt
00:01:14]} 31. Bb6 {[%clk 00:16:33]} {[%emt 00:00:53]} Red7 {[%clk 00:05:48]}
{[%emt 00:03:52]} 32. Rc1 {[%clk 00:13:36]} {[%emt 00:03:27]} Bd2 {[%clk
00:06:13]} {[%emt 00:00:05]} 33. Rd1 {[%clk 00:13:45]} {[%emt 00:00:21]} Bb4
{[%clk 00:06:38]} {[%emt 00:00:06]} 34. g4 {[%clk 00:13:58]} {[%emt 00:00:16]}
fxg4+ {[%clk 00:04:38]} {[%emt 00:02:31]} 35. hxg4 {[%clk 00:14:18]} {[%emt
00:00:09]} gxf4 {[%clk 00:04:52]} {[%emt 00:00:16]} 36. exf4 {[%clk 00:14:39]}
{[%emt 00:00:08]} Re7 {[%clk 00:04:06]} {[%emt 00:01:17]} 37. Rh1 {[%clk
00:13:48]} {[%emt 00:01:21]} Kg7 {[%clk 00:04:32]} {[%emt 00:00:04]} 38. f5
{[%clk 00:13:50]} {[%emt 00:00:29]} Re8 {[%clk 00:04:10]} {[%emt 00:00:52]} 39.
Be3 {[%clk 00:11:54]} {[%emt 00:02:25]} Bf8 {[%clk 00:03:26]} {[%emt 00:01:15]}
40. Bxh6+ {[%clk 00:11:43]} {[%emt 00:00:40]} Kg8 {[%clk 00:03:41]} {[%emt
00:00:14]} 41. Bxf8 {[%clk 00:11:45]} {[%emt 00:00:29]} exf5 {[%clk 00:03:19]}
{[%emt 00:00:53]} 42. Rg6+ {[%clk 00:10:03]} {[%emt 00:02:11]} Kxf8 {[%clk
00:03:03]} {[%emt 00:00:47]} 43. Rh8+ {[%clk 00:10:06]} {[%emt 00:00:27]} Kf7
{[%clk 00:03:20]} {[%emt 00:00:13]} 44. Rf6+ {[%clk 00:10:21]} {[%emt
00:00:15]} 1-0

[Event "Elite Hotels Open 2024"]
[Site "Elite Stadshotellet, Kungsgatan 6, Vaxjo, Sweden"]
[Date "2024.02.11"]
[Round "7.8"]
[White "Olsson, William"]
[Black "Ljung, Harald"]
[Result "1/2-1/2"]
[TimeControl "15 minutes + 5 seconds per move from move one (Round 1 - 4) / 90 minutes + 30 seconds per move from move one (Round 5 - 8)"]
[WhiteTitle "FM"]
[WhiteFideId "1741721"]
[BlackFideId "1738178"]
[WhiteElo "2373"]
[BlackElo "2098"]

1. d4 {[%clk 01:30:59]} {[%emt 00:00:01]} Nf6 {[%clk 01:30:44]} {[%emt
00:00:16]} 2. c4 {[%clk 01:31:22]} {[%emt 00:00:06]} e6 {[%clk 01:31:04]}
{[%emt 00:00:11]} 3. g3 {[%clk 01:31:44]} {[%emt 00:00:08]} d5 {[%clk
01:28:13]} {[%emt 00:03:20]} 4. Bg2 {[%clk 01:31:56]} {[%emt 00:00:18]} Bb4+
{[%clk 01:24:37]} {[%emt 00:04:07]} 5. Bd2 {[%clk 01:32:11]} {[%emt 00:00:15]}
Be7 {[%clk 01:24:48]} {[%emt 00:00:19]} 6. Nf3 {[%clk 01:32:22]} {[%emt
00:00:18]} O-O {[%clk 01:24:54]} {[%emt 00:00:24]} 7. O-O {[%clk 01:31:48]}
{[%emt 00:01:04]} c6 {[%clk 01:24:53]} {[%emt 00:00:32]} 8. b3 {[%clk
01:31:55]} {[%emt 00:00:23]} Nbd7 {[%clk 01:24:55]} {[%emt 00:00:28]} 9. Qc2
{[%clk 01:32:13]} {[%emt 00:00:12]} b6 {[%clk 01:19:52]} {[%emt 00:05:32]} 10.
Rd1 {[%clk 01:31:02]} {[%emt 00:01:42]} Ba6 {[%clk 01:18:05]} {[%emt 00:02:17]}
11. Bf4 {[%clk 01:16:16]} {[%emt 00:15:15]} Rc8 {[%clk 01:17:37]} {[%emt
00:00:58]} 12. Ne5 {[%clk 01:04:35]} {[%emt 00:12:11]} c5 {[%clk 01:08:05]}
{[%emt 00:10:03]} 13. Qb2 {[%clk 00:48:29]} {[%emt 00:16:36]} cxd4 {[%clk
01:00:13]} {[%emt 00:08:21]} 14. Na3 {[%clk 00:47:22]} {[%emt 00:01:38]} Nxe5
{[%clk 00:56:21]} {[%emt 00:04:21]} 15. Bxe5 {[%clk 00:47:32]} {[%emt
00:00:20]} Ng4 {[%clk 00:50:59]} {[%emt 00:05:53]} 16. Bxd4 {[%clk 00:47:41]}
{[%emt 00:00:21]} e5 {[%clk 00:50:43]} {[%emt 00:00:46]} 17. Bc3 {[%clk
00:46:19]} {[%emt 00:01:52]} d4 {[%clk 00:50:14]} {[%emt 00:00:59]} 18. Be1
{[%clk 00:46:42]} {[%emt 00:00:07]} Qc7 {[%clk 00:47:11]} {[%emt 00:03:34]} 19.
Nb5 {[%clk 00:39:08]} {[%emt 00:08:03]} Qd7 {[%clk 00:41:02]} {[%emt 00:06:37]}
20. e3 {[%clk 00:33:55]} {[%emt 00:05:46]} Bxb5 {[%clk 00:37:31]} {[%emt
00:04:01]} 21. cxb5 {[%clk 00:34:17]} {[%emt 00:00:08]} Qf5 {[%clk 00:34:15]}
{[%emt 00:03:45]} 22. h3 {[%clk 00:31:18]} {[%emt 00:03:29]} Nf6 {[%clk
00:34:20]} {[%emt 00:00:26]} 23. exd4 {[%clk 00:30:22]} {[%emt 00:01:26]} Rc2
{[%clk 00:33:40]} {[%emt 00:01:09]} 24. Qb1 {[%clk 00:30:48]} {[%emt 00:00:04]}
exd4 {[%clk 00:33:51]} {[%emt 00:00:19]} 25. Bf1 {[%clk 00:28:44]} {[%emt
00:02:34]} Qc8 {[%clk 00:28:20]} {[%emt 00:06:00]} 26. Rxd4 {[%clk 00:21:40]}
{[%emt 00:07:35]} Re8 {[%clk 00:19:32]} {[%emt 00:09:18]} 27. Qd1 {[%clk
00:18:11]} {[%emt 00:03:59]} Rc7 {[%clk 00:16:13]} {[%emt 00:03:49]} 28. Bb4
{[%clk 00:18:13]} {[%emt 00:00:28]} Bxb4 {[%clk 00:16:18]} {[%emt 00:00:25]} 29.
Rxb4 {[%clk 00:18:41]} {[%emt 00:00:01]} Ne4 {[%clk 00:15:48]} {[%emt
00:01:00]} 30. Bg2 {[%clk 00:15:17]} {[%emt 00:03:54]} Nc3 {[%clk 00:09:33]}
{[%emt 00:06:44]} 31. Qg4 {[%clk 00:13:57]} {[%emt 00:01:49]} Ne2+ {[%clk
00:09:21]} {[%emt 00:00:43]} 32. Kh2 {[%clk 00:14:21]} {[%emt 00:00:07]} Qd8
{[%clk 00:07:53]} {[%emt 00:01:58]} 33. Re1 {[%clk 00:12:16]} {[%emt 00:02:34]}
Rce7 {[%clk 00:07:51]} {[%emt 00:00:32]} 34. Bc6 {[%clk 00:08:49]} {[%emt
00:03:58]} Qd2 {[%clk 00:08:00]} {[%emt 00:00:20]} 35. Rf1 {[%clk 00:08:47]}
{[%emt 00:00:31]} h5 {[%clk 00:06:45]} {[%emt 00:01:45]} 36. Qh4 {[%clk
00:08:23]} {[%emt 00:00:55]} g5 {[%clk 00:06:38]} {[%emt 00:00:37]} 37. Qc4
{[%clk 00:08:41]} {[%emt 00:00:12]} Rd8 {[%clk 00:07:01]} {[%emt 00:00:07]} 38.
Bg2 {[%clk 00:07:41]} {[%emt 00:01:30]} Rd4 {[%clk 00:06:31]} {[%emt 00:01:01]}
39. Qc8+ {[%clk 00:08:03]} {[%emt 00:00:08]} Rd8 {[%clk 00:07:00]} {[%emt
00:00:02]} 40. Qc4 {[%clk 00:06:26]} {[%emt 00:02:07]} Rd4 {[%clk 00:05:11]}
{[%emt 00:02:18]} 41. Qc8+ {[%clk 00:06:48]} {[%emt 00:00:08]} Rd8 {[%clk
00:05:36]} {[%emt 00:00:05]} 42. Qf5 {[%clk 00:06:16]} {[%emt 00:01:02]} Qxb4
{[%clk 00:05:27]} {[%emt 00:00:39]} 43. Qxg5+ {[%clk 00:06:42]} {[%emt
00:00:04]} Kf8 {[%clk 00:04:49]} {[%emt 00:01:07]} 44. Qh6+ {[%clk 00:07:09]}
{[%emt 00:00:04]} Kg8 {[%clk 00:05:09]} {[%emt 00:00:10]} 45. Qg5+ {[%clk
00:07:34]} {[%emt 00:00:05]} 1/2-1/2

[Event "Elite Hotels Open 2024"]
[Site "Elite Stadshotellet, Kungsgatan 6, Vaxjo, Sweden"]
[Date "2024.02.11"]
[Round "7.9"]
[White "Ostlund, Joar"]
[Black "Eriksson, Wilmer"]
[Result "1-0"]
[TimeControl "15 minutes + 5 seconds per move from move one (Round 1 - 4) / 90 minutes + 30 seconds per move from move one (Round 5 - 8)"]
[WhiteTitle "FM"]
[WhiteFideId "1735020"]
[BlackFideId "1768298"]
[WhiteElo "2327"]
[BlackElo "1976"]

1. d4 {[%clk 01:30:57]} {[%emt 00:00:02]} Nf6 {[%clk 01:30:53]} {[%emt
00:00:07]} 2. c4 {[%clk 01:31:19]} {[%emt 00:00:08]} g6 {[%clk 01:31:15]}
{[%emt 00:00:08]} 3. Nc3 {[%clk 01:31:38]} {[%emt 00:00:10]} d5 {[%clk
01:31:36]} {[%emt 00:00:10]} 4. Nf3 {[%clk 01:31:31]} {[%emt 00:00:37]} Bg7
{[%clk 01:31:57]} {[%emt 00:00:09]} 5. h3 {[%clk 01:31:22]} {[%emt 00:00:39]}
O-O {[%clk 01:30:25]} {[%emt 00:02:03]} 6. cxd5 {[%clk 01:31:34]} {[%emt
00:00:18]} Nxd5 {[%clk 01:30:51]} {[%emt 00:00:03]} 7. e4 {[%clk 01:31:55]}
{[%emt 00:00:08]} Nxc3 {[%clk 01:31:13]} {[%emt 00:00:08]} 8. bxc3 {[%clk
01:32:20]} {[%emt 00:00:06]} c5 {[%clk 01:30:24]} {[%emt 00:01:19]} 9. Be2
{[%clk 01:32:37]} {[%emt 00:00:13]} Nc6 {[%clk 01:24:24]} {[%emt 00:06:29]} 10.
Be3 {[%clk 01:32:52]} {[%emt 00:00:14]} cxd4 {[%clk 01:20:55]} {[%emt
00:04:00]} 11. cxd4 {[%clk 01:33:15]} {[%emt 00:00:07]} b6 {[%clk 01:14:43]}
{[%emt 00:06:42]} 12. O-O {[%clk 01:29:32]} {[%emt 00:04:13]} e6 {[%clk
01:13:50]} {[%emt 00:01:23]} 13. Rc1 {[%clk 01:24:26]} {[%emt 00:05:37]} Bb7
{[%clk 01:14:03]} {[%emt 00:00:17]} 14. Qd2 {[%clk 01:01:39]} {[%emt 00:23:16]}
Qd6 {[%clk 00:56:35]} {[%emt 00:17:58]} 15. Rfd1 {[%clk 00:55:35]} {[%emt
00:06:35]} Rfd8 {[%clk 00:55:17]} {[%emt 00:01:47]} 16. Bg5 {[%clk 00:52:16]}
{[%emt 00:03:50]} Rdc8 {[%clk 00:35:43]} {[%emt 00:20:04]} 17. h4 {[%clk
00:45:14]} {[%emt 00:07:31]} Ne7 {[%clk 00:22:47]} {[%emt 00:13:26]} 18. Qe3
{[%clk 00:35:39]} {[%emt 00:10:05]} Rxc1 {[%clk 00:21:14]} {[%emt 00:02:03]} 19.
Rxc1 {[%clk 00:36:00]} {[%emt 00:00:10]} Rc8 {[%clk 00:21:37]} {[%emt
00:00:07]} 20. Rxc8+ {[%clk 00:35:00]} {[%emt 00:01:30]} Nxc8 {[%clk 00:20:38]}
{[%emt 00:01:28]} 21. h5 {[%clk 00:33:13]} {[%emt 00:02:17]} Qc6 {[%clk
00:17:06]} {[%emt 00:04:03]} 22. e5 {[%clk 00:23:48]} {[%emt 00:09:55]} b5
{[%clk 00:14:59]} {[%emt 00:02:38]} 23. Bf6 {[%clk 00:13:24]} {[%emt 00:10:53]}
Qe4 {[%clk 00:03:00]} {[%emt 00:12:29]} 24. Bxg7 {[%clk 00:11:38]} {[%emt
00:02:16]} Qxe3 {[%clk 00:01:23]} {[%emt 00:02:08]} 25. fxe3 {[%clk 00:12:04]}
{[%emt 00:00:03]} Kxg7 {[%clk 00:01:48]} {[%emt 00:00:05]} 26. hxg6 {[%clk
00:11:49]} {[%emt 00:00:45]} b4 {[%clk 00:01:20]} {[%emt 00:00:58]} 27. gxh7
{[%clk 00:09:15]} {[%emt 00:03:04]} Bd5 {[%clk 00:01:07]} {[%emt 00:00:43]} 28.
Bd3 {[%clk 00:08:33]} {[%emt 00:01:11]} Ne7 {[%clk 00:00:42]} {[%emt 00:00:55]}
29. Bb1 {[%clk 00:03:50]} {[%emt 00:05:13]} a5 {[%clk 00:00:36]} {[%emt
00:00:37]} 30. Kf2 {[%clk 00:02:41]} {[%emt 00:01:38]} Ng6 {[%clk 00:00:36]}
{[%emt 00:00:31]} 31. Ke2 {[%clk 00:02:22]} {[%emt 00:00:50]} a4 {[%clk
00:00:44]} {[%emt 00:00:22]} 32. Kd3 {[%clk 00:02:20]} {[%emt 00:00:32]} Kxh7
{[%clk 00:00:46]} {[%emt 00:00:28]} 33. e4 {[%clk 00:00:36]} {[%emt 00:02:14]}
Bxa2 {[%clk 00:00:34]} {[%emt 00:00:43]} 34. Bxa2 {[%clk 00:01:04]} {[%emt
00:00:01]} b3 {[%clk 00:00:57]} {[%emt 00:00:07]} 35. Bxb3 {[%clk 00:01:21]}
{[%emt 00:00:13]} axb3 {[%clk 00:01:24]} {[%emt 00:00:03]} 36. g3 {[%clk
00:01:36]} {[%emt 00:00:16]} Kh6 {[%clk 00:00:38]} {[%emt 00:01:16]} 37. Kc3
{[%clk 00:02:03]} {[%emt 00:00:02]} Kh5 {[%clk 00:00:52]} {[%emt 00:00:16]} 38.
Nh2 {[%clk 00:00:38]} {[%emt 00:01:54]} Ne7 {[%clk 00:00:36]} {[%emt 00:00:47]}
39. Kxb3 {[%clk 00:01:05]} {[%emt 00:00:02]} Kg5 {[%clk 00:00:47]} {[%emt
00:00:18]} 40. Kc4 {[%clk 00:01:23]} {[%emt 00:00:12]} f5 {[%clk 00:00:41]}
{[%emt 00:00:37]} 41. exf6 {[%clk 00:01:33]} {[%emt 00:00:19]} Kxf6 {[%clk
00:01:10]} {[%emt 00:00:01]} 42. Nf3 {[%clk 00:01:39]} {[%emt 00:00:24]} Ng6
{[%clk 00:01:00]} {[%emt 00:00:40]} 43. Kc5 {[%clk 00:01:41]} {[%emt 00:00:27]}
Ke7 {[%clk 00:01:15]} {[%emt 00:00:15]} 44. Ne5 {[%clk 00:01:46]} {[%emt
00:00:24]} Nf8 {[%clk 00:01:26]} {[%emt 00:00:20]} 45. Nf3 {[%clk 00:01:27]}
{[%emt 00:00:49]} Nh7 {[%clk 00:01:44]} {[%emt 00:00:11]} 46. e5 {[%clk
00:01:35]} {[%emt 00:00:23]} Nf8 {[%clk 00:02:01]} {[%emt 00:00:13]} 47. Kc6
{[%clk 00:01:34]} {[%emt 00:00:31]} Ng6 {[%clk 00:01:32]} {[%emt 00:00:59]} 48.
Ng5 {[%clk 00:01:39]} {[%emt 00:00:25]} Nf8 {[%clk 00:01:45]} {[%emt 00:00:17]}
49. Nh3 {[%clk 00:01:35]} {[%emt 00:00:33]} Nh7 {[%clk 00:00:40]} {[%emt
00:01:36]} 50. Kc7 {[%clk 00:01:12]} {[%emt 00:00:53]} Nf8 {[%clk 00:01:00]}
{[%emt 00:00:10]} 51. Ng5 {[%clk 00:01:33]} {[%emt 00:00:08]} Ng6 {[%clk
00:01:21]} {[%emt 00:00:09]} 52. Ne4 {[%clk 00:01:55]} {[%emt 00:00:08]} Nf8
{[%clk 00:01:19]} {[%emt 00:00:33]} 53. Nf6 {[%clk 00:01:37]} {[%emt 00:00:48]}
Ng6 {[%clk 00:01:40]} {[%emt 00:00:09]} 54. Kc6 {[%clk 00:01:25]} {[%emt
00:00:41]} Nh8 {[%clk 00:01:38]} {[%emt 00:00:33]} 55. Kc5 {[%clk 00:01:17]}
{[%emt 00:00:38]} Nf7 {[%clk 00:01:38]} {[%emt 00:00:30]} 56. Kc4 {[%clk
00:01:36]} {[%emt 00:00:11]} Ng5 {[%clk 00:01:34]} {[%emt 00:00:34]} 57. Kd3
{[%clk 00:01:53]} {[%emt 00:00:13]} Nf3 {[%clk 00:00:57]} {[%emt 00:01:07]} 58.
Ke3 {[%clk 00:01:58]} {[%emt 00:00:25]} Ng5 {[%clk 00:00:35]} {[%emt 00:00:51]}
59. Kf4 {[%clk 00:01:53]} {[%emt 00:00:35]} Nh3+ {[%clk 00:00:42]} {[%emt
00:00:23]} 60. Kf3 {[%clk 00:02:13]} {[%emt 00:00:09]} Ng1+ {[%clk 00:00:34]}
{[%emt 00:00:39]} 61. Ke3 {[%clk 00:02:33]} {[%emt 00:00:11]} Nh3 {[%clk
00:00:59]} {[%emt 00:00:05]} 62. Ne4 {[%clk 00:02:53]} {[%emt 00:00:10]} Kf7
{[%clk 00:01:07]} {[%emt 00:00:22]} 63. Kf3 {[%clk 00:03:10]} {[%emt 00:00:12]}
Kg6 {[%clk 00:01:21]} {[%emt 00:00:17]} 64. Kg2 {[%clk 00:02:55]} {[%emt
00:00:45]} Kf5 {[%clk 00:01:45]} {[%emt 00:00:06]} 65. Nd6+ {[%clk 00:03:08]}
{[%emt 00:00:17]} Kg4 {[%clk 00:02:13]} {[%emt 00:00:02]} 66. Nf7 {[%clk
00:03:31]} {[%emt 00:00:08]} Nf4+ {[%clk 00:01:46]} {[%emt 00:00:57]} 67. gxf4
{[%clk 00:03:54]} {[%emt 00:00:06]} Kxf4 {[%clk 00:02:12]} {[%emt 00:00:04]} 68.
d5 {[%clk 00:04:01]} {[%emt 00:00:24]} 1-0

[Event "Elite Hotels Open 2024"]
[Site "Elite Stadshotellet, Kungsgatan 6, Vaxjo, Sweden"]
[Date "2024.02.11"]
[Round "7.10"]
[White "Bjorkman, Filip"]
[Black "Crevatin, Leo"]
[Result "1/2-1/2"]
[TimeControl "15 minutes + 5 seconds per move from move one (Round 1 - 4) / 90 minutes + 30 seconds per move from move one (Round 5 - 8)"]
[BlackTitle "FM"]
[WhiteFideId "1734970"]
[BlackFideId "1726307"]
[WhiteElo "2046"]
[BlackElo "2303"]

1. e4 {[%clk 01:25:46]} {[%emt 00:05:12]} c6 {[%clk 01:30:55]} {[%emt
00:00:06]} 2. d4 {[%clk 01:25:58]} {[%emt 00:00:18]} d5 {[%clk 01:31:19]}
{[%emt 00:00:06]} 3. e5 {[%clk 01:26:24]} {[%emt 00:00:04]} Bf5 {[%clk
01:31:38]} {[%emt 00:00:06]} 4. h4 {[%clk 01:26:23]} {[%emt 00:00:35]} h6
{[%clk 01:32:03]} {[%emt 00:00:06]} 5. g4 {[%clk 01:26:20]} {[%emt 00:00:33]}
Be4 {[%clk 01:32:27]} {[%emt 00:00:06]} 6. f3 {[%clk 01:26:45]} {[%emt
00:00:05]} Bh7 {[%clk 01:32:49]} {[%emt 00:00:08]} 7. e6 {[%clk 01:27:11]}
{[%emt 00:00:04]} Nf6 {[%clk 01:33:13]} {[%emt 00:00:06]} 8. Bd3 {[%clk
01:17:17]} {[%emt 00:10:23]} Qd6 {[%clk 01:28:28]} {[%emt 00:05:15]} 9. exf7+
{[%clk 01:17:17]} {[%emt 00:00:30]} Kxf7 {[%clk 01:28:51]} {[%emt 00:00:06]} 10.
Ne2 {[%clk 01:16:48]} {[%emt 00:01:01]} Nbd7 {[%clk 01:26:07]} {[%emt
00:03:14]} 11. Bxh7 {[%clk 01:15:52]} {[%emt 00:01:26]} Rxh7 {[%clk 01:23:57]}
{[%emt 00:02:39]} 12. Bf4 {[%clk 01:14:21]} {[%emt 00:02:02]} e5 {[%clk
01:22:40]} {[%emt 00:01:47]} 13. dxe5 {[%clk 01:14:03]} {[%emt 00:00:49]} Nxe5
{[%clk 01:22:33]} {[%emt 00:00:36]} 14. O-O {[%clk 01:14:13]} {[%emt 00:00:20]}
Re8 {[%clk 01:16:58]} {[%emt 00:06:05]} 15. Nbc3 {[%clk 01:07:21]} {[%emt
00:07:22]} Qc5+ {[%clk 01:09:52]} {[%emt 00:07:36]} 16. Kg2 {[%clk 01:03:41]}
{[%emt 00:04:09]} Nc4 {[%clk 01:05:04]} {[%emt 00:05:19]} 17. Qd4 {[%clk
01:02:49]} {[%emt 00:01:22]} Qxd4 {[%clk 00:58:28]} {[%emt 00:07:07]} 18. Nxd4
{[%clk 01:03:16]} {[%emt 00:00:02]} Bc5 {[%clk 00:57:49]} {[%emt 00:01:08]} 19.
Nf5 {[%clk 00:59:42]} {[%emt 00:04:05]} b5 {[%clk 00:49:37]} {[%emt 00:08:41]}
20. b3 {[%clk 00:54:51]} {[%emt 00:05:22]} Be3 {[%clk 00:43:11]} {[%emt
00:06:56]} 21. Kg3 {[%clk 00:41:53]} {[%emt 00:13:27]} g5 {[%clk 00:30:26]}
{[%emt 00:13:15]} 22. Nxh6+ {[%clk 00:31:06]} {[%emt 00:11:17]} Rxh6 {[%clk
00:21:29]} {[%emt 00:09:27]} 23. hxg5 {[%clk 00:31:29]} {[%emt 00:00:06]} Rh3+
{[%clk 00:15:42]} {[%emt 00:06:17]} 24. Kxh3 {[%clk 00:31:18]} {[%emt
00:00:41]} Bxf4 {[%clk 00:16:09]} {[%emt 00:00:03]} 25. bxc4 {[%clk 00:22:43]}
{[%emt 00:09:06]} Rh8+ {[%clk 00:08:00]} {[%emt 00:08:39]} 26. Kg2 {[%clk
00:23:05]} {[%emt 00:00:07]} Rh2+ {[%clk 00:08:18]} {[%emt 00:00:13]} 27. Kg1
{[%clk 00:23:33]} {[%emt 00:00:01]} Nh7 {[%clk 00:08:13]} {[%emt 00:00:36]} 28.
Rf2 {[%clk 00:22:25]} {[%emt 00:01:38]} Rh4 {[%clk 00:04:48]} {[%emt 00:03:55]}
29. Re1 {[%clk 00:22:09]} {[%emt 00:00:45]} Nxg5 {[%clk 00:04:28]} {[%emt
00:00:50]} 30. Kg2 {[%clk 00:20:09]} {[%emt 00:02:30]} Rh2+ {[%clk 00:02:56]}
{[%emt 00:02:03]} 31. Kf1 {[%clk 00:20:30]} {[%emt 00:00:07]} Rh1+ {[%clk
00:02:24]} {[%emt 00:01:03]} 32. Ke2 {[%clk 00:20:50]} {[%emt 00:00:09]} Rxe1+
{[%clk 00:02:34]} {[%emt 00:00:20]} 33. Kxe1 {[%clk 00:21:15]} {[%emt
00:00:05]} Bg3 {[%clk 00:02:41]} {[%emt 00:00:23]} 34. Ke2 {[%clk 00:20:49]}
{[%emt 00:00:57]} Bxf2 {[%clk 00:02:30]} {[%emt 00:00:41]} 35. Kxf2 {[%clk
00:21:17]} {[%emt 00:00:01]} bxc4 {[%clk 00:02:42]} {[%emt 00:00:17]} 36. Ne2
{[%clk 00:20:56]} {[%emt 00:00:53]} Ne6 {[%clk 00:02:25]} {[%emt 00:00:47]} 37.
Ke3 {[%clk 00:21:06]} {[%emt 00:00:20]} c5 {[%clk 00:02:05]} {[%emt 00:00:51]}
38. f4 {[%clk 00:17:34]} {[%emt 00:04:00]} Kf6 {[%clk 00:01:45]} {[%emt
00:00:50]} 39. c3 {[%clk 00:14:26]} {[%emt 00:03:39]} a6 {[%clk 00:01:51]}
{[%emt 00:00:24]} 40. a3 {[%clk 00:14:50]} {[%emt 00:00:06]} a5 {[%clk
00:01:32]} {[%emt 00:00:49]} 41. a4 {[%clk 00:15:17]} {[%emt 00:00:03]} Nf8
{[%clk 00:01:29]} {[%emt 00:00:33]} 42. Kf3 {[%clk 00:13:36]} {[%emt 00:02:11]}
Nd7 {[%clk 00:01:06]} {[%emt 00:00:54]} 43. g5+ {[%clk 00:13:59]} {[%emt
00:00:06]} Kf5 {[%clk 00:00:53]} {[%emt 00:00:43]} 44. Ng3+ {[%clk 00:14:13]}
{[%emt 00:00:16]} Ke6 {[%clk 00:00:40]} {[%emt 00:00:44]} 45. f5+ {[%clk
00:08:30]} {[%emt 00:06:13]} Ke5 {[%clk 00:01:03]} {[%emt 00:00:07]} 46. f6
{[%clk 00:08:38]} {[%emt 00:00:22]} d4 {[%clk 00:00:51]} {[%emt 00:00:42]} 47.
Ne4 {[%clk 00:08:23]} {[%emt 00:00:44]} Kf5 {[%clk 00:00:46]} {[%emt 00:00:35]}
48. f7 {[%clk 00:01:42]} {[%emt 00:07:12]} Ne5+ {[%clk 00:00:53]} {[%emt
00:00:22]} 49. Ke2 {[%clk 00:02:11]} {[%emt 00:00:01]} Nxf7 {[%clk 00:00:52]}
{[%emt 00:00:32]} 50. Nxc5 {[%clk 00:02:27]} {[%emt 00:00:14]} dxc3 {[%clk
00:00:49]} {[%emt 00:00:32]} 51. Kd1 {[%clk 00:02:30]} {[%emt 00:00:27]} Nxg5
{[%clk 00:00:54]} {[%emt 00:00:25]} 52. Kc2 {[%clk 00:02:27]} {[%emt 00:00:33]}
Ne4 {[%clk 00:01:06]} {[%emt 00:00:16]} 53. Nb7 {[%clk 00:02:47]} {[%emt
00:00:12]} Ke5 {[%clk 00:01:02]} {[%emt 00:00:33]} 54. Nxa5 {[%clk 00:03:12]}
{[%emt 00:00:06]} Kd4 {[%clk 00:01:05]} {[%emt 00:00:25]} 55. Nc6+ {[%clk
00:03:39]} {[%emt 00:00:05]} Kc5 {[%clk 00:01:27]} {[%emt 00:00:07]} 56. Ne5
{[%clk 00:03:23]} {[%emt 00:00:47]} Kb4 {[%clk 00:01:20]} {[%emt 00:00:35]} 57.
a5 {[%clk 00:02:41]} {[%emt 00:01:12]} Nc5 {[%clk 00:01:03]} {[%emt 00:00:47]}
58. Nc6+ {[%clk 00:02:53]} {[%emt 00:00:19]} Kb5 {[%clk 00:00:56]} {[%emt
00:00:36]} 59. Nd4+ {[%clk 00:03:21]} {[%emt 00:00:03]} 1/2-1/2